fUST/lending_fUST_20240813
["ID","MTS","AMOUNT","RATE_DAILY","PERIOD"]
[334766170,1723537865436,-500.0,0.00015068,2]
[334766172,1723537865446,-852.94,0.00015068,2]
[334766174,1723537865455,-500.0,0.00015068,2]
[334766176,1723537865464,-500.0,0.00015068,2]
[334766178,1723537865473,-2151.59125604,0.00015108,2]
[334766180,1723537865483,-600.0,0.00015246,2]
[334766182,1723537865492,-600.0,0.00015246,2]
[334766184,1723537865502,-500.0,0.00015342,2]
[334766186,1723537865511,-1385.23,0.00015342,2]
[334766188,1723537865520,-660.55,0.00015342,2]
[334766190,1723537865530,-500.0,0.00015342,2]
[334766192,1723537865540,-500.0,0.00015342,2]
[334766194,1723537865549,-367.12412063,0.00015342,2]
[334766196,1723537865559,-500.0,0.00015342,2]
[334766198,1723537865569,-500.0,0.00015342,2]
[334766200,1723537865586,-500.0,0.00015342,2]
[334766202,1723537865596,-1882.69,0.00015342,2]
[334766204,1723537865605,-500.0,0.00015342,2]
[334766206,1723537865615,-500.0,0.00015342,2]
[334766208,1723537865624,-531.46,0.00015342,2]
[334766210,1723537865634,-640.71,0.00015342,2]
[334766212,1723537865644,-500.0,0.00015342,2]
[334766214,1723537865654,-500.0,0.00015342,2]
[334766215,1723537865663,-324.31541479,0.00015342,2]
[334766218,1723537865674,-257.1212263,0.00015342,2]
[334766220,1723537865686,-500.0,0.00015342,2]
[334766222,1723537865696,-500.0,0.00015342,2]
[334766224,1723537865706,-500.0,0.00015342,2]
[334766225,1723537865715,-1230.34,0.00015342,2]
[334766227,1723537865725,-737.09,0.00015342,2]
[334766229,1723537865734,-925.78,0.00015342,2]
[334766231,1723537865744,-564.05,0.00015342,2]
[334766233,1723537865754,-500.0,0.00015342,2]
[334766235,1723537865764,-500.0,0.00015342,2]
[334766237,1723537865774,-500.0,0.00015342,2]
[334766239,1723537865785,-500.0,0.00015342,2]
[334766241,1723537865794,-546.14,0.00015342,2]
[334766243,1723537865804,-603.57,0.00015342,2]
[334766245,1723537865814,-500.0,0.00015342,2]
[334766247,1723537865831,-875.25,0.00015342,2]
[334766249,1723537865841,-323.32291966,0.00015342,2]
[334766251,1723537865850,-627.62,0.00015342,2]
[334766253,1723537865860,-500.0,0.00015342,2]
[334766255,1723537865869,-909.82,0.00015342,2]
[334766257,1723537865878,-860.2,0.00015342,2]
[334766259,1723537865888,-548.31,0.00015342,2]
[334766261,1723537865898,-656.8,0.00015342,2]
[334766263,1723537865907,-500.0,0.00015342,2]
[334766265,1723537865917,-797.5,0.00015342,2]
[334766267,1723537865926,-500.0,0.00015342,2]
[334766269,1723537865936,-500.0,0.00015342,2]
[334766271,1723537865945,-500.0,0.00015342,2]
[334766273,1723537865954,-500.0,0.00015342,2]
[334766275,1723537865964,-786.49,0.00015342,2]
[334766277,1723537865973,-500.0,0.00015342,2]
[334766279,1723537865983,-1273.33,0.00015342,2]
[334766281,1723537865992,-514.93,0.00015342,2]
[334766283,1723537866003,-500.0,0.00015342,2]
[334766285,1723537866013,-500.0,0.00015342,2]
[334766287,1723537866025,-1201.39,0.00015342,2]
[334766289,1723537866034,-500.0,0.00015342,2]
[334766291,1723537866044,-500.0,0.00015342,2]
[334766293,1723537866053,-500.0,0.00015342,2]
[334766295,1723537866063,-830.32,0.00015342,2]
[334766297,1723537866076,-500.0,0.00015342,2]
[334766299,1723537866086,-545.21,0.00015342,2]
[334766301,1723537866095,-1884.12,0.00015342,2]
[334766303,1723537866105,-500.0,0.00015342,2]
[334766305,1723537866115,-743.92,0.00015342,2]
[334766307,1723537866124,-500.0,0.00015342,2]
[334766309,1723537866134,-824.42,0.00015342,2]
[334766310,1723537866143,-500.0,0.00015342,2]
[334766313,1723537866153,-369.68006595,0.00015342,2]
[334766315,1723537866163,-958.8,0.00015342,2]
[334766317,1723537866173,-500.0,0.00015342,2]
[334766319,1723537866183,-376.03971067,0.00015342,2]
[334766321,1723537866193,-625.11,0.00015342,2]
[334766323,1723537866203,-995.56,0.00015342,2]
[334766325,1723537866212,-500.0,0.00015342,2]
[334766327,1723537866222,-831.7,0.00015342,2]
[334766329,1723537866231,-919.48,0.00015342,2]
[334766331,1723537866242,-680.9,0.00015342,2]
[334766333,1723537866252,-500.0,0.00015342,2]
[334766335,1723537866262,-702.43,0.00015342,2]
[334766337,1723537866271,-500.0,0.00015342,2]
[334766339,1723537866280,-809.2,0.00015342,2]
[334766348,1723537866367,-500.0,0.00015342,2]
[334766350,1723537866385,-532.94554107,0.00015342,2]
[334766353,1723537866396,-4378.29,0.00015342,2]
[334766355,1723537866406,-2261.14,0.00015342,2]
[334766357,1723537866415,-1134.62,0.00015342,2]
[334766359,1723537866425,-500.0,0.00015342,2]
[334766361,1723537866434,-1505.01,0.00015342,2]
[334766363,1723537866444,-500.0,0.00015342,2]
[334766365,1723537866454,-639.48,0.00015342,2]
[334766367,1723537866464,-1583.11,0.00015342,2]
[334766369,1723537866474,-917.9,0.00015342,2]
[334766371,1723537866484,-527.13,0.00015342,2]
[334766373,1723537866494,-1585.62,0.00015342,2]
[334766375,1723537866503,-500.0,0.00015342,2]
[334766377,1723537866513,-500.0,0.00015342,2]
[334766379,1723537866522,-976.77,0.00015342,2]
[334766381,1723537866533,-1734.21,0.00015342,2]
[334766383,1723537866542,-500.0,0.00015342,2]
[334766385,1723537866552,-1315.3,0.00015342,2]
[334766387,1723537866561,-500.0,0.00015342,2]
[334766389,1723537866570,-500.0,0.00015342,2]
[334766391,1723537866582,-7367.39,0.00015342,2]
[334766393,1723537866592,-595.3,0.00015342,2]
[334766395,1723537866601,-995.73,0.00015342,2]
[334766397,1723537866610,-1924.78,0.00015342,2]
[334766399,1723537866620,-2441.51,0.00015342,2]
[334766401,1723537866630,-504.64,0.00015342,2]
[334766403,1723537866640,-500.0,0.00015342,2]
[334766405,1723537866650,-1026.0,0.00015342,2]
[334766407,1723537866660,-1372.19,0.00015342,2]
[334766409,1723537866670,-500.0,0.00015342,2]
[334766411,1723537866679,-825.12,0.00015342,2]
[334766413,1723537866688,-1218.76,0.00015342,2]
[334766415,1723537866698,-2009.64,0.00015342,2]
[334766417,1723537866710,-5418.04,0.00015342,2]
[334766420,1723537866721,-666.76,0.00015342,2]
[334766422,1723537866731,-1515.4,0.00015342,2]
[334766424,1723537866742,-7239.45,0.00015342,2]
[334766426,1723537866754,-500.0,0.00015342,2]
[334766428,1723537866766,-1080.56,0.00015342,2]
[334766430,1723537866776,-1487.36,0.00015342,2]
[334766432,1723537866785,-770.77,0.00015342,2]
[334766434,1723537866795,-500.0,0.00015342,2]
[334766437,1723537866805,-3754.47,0.00015342,2]
[334766439,1723537866815,-500.0,0.00015342,2]
[334766441,1723537866828,-3930.98,0.00015342,2]
[334766443,1723537866837,-584.06,0.00015342,2]
[334766445,1723537866847,-1323.5,0.00015342,2]
[334766447,1723537866857,-500.0,0.00015342,2]
[334766449,1723537866866,-500.0,0.00015342,2]
[334766451,1723537866876,-1224.27,0.00015342,2]
[334766453,1723537866886,-580.42,0.00015342,2]
[334766455,1723537866896,-882.99,0.00015342,2]
[334766457,1723537866906,-500.0,0.00015342,2]
[334766459,1723537866916,-1100.34,0.00015342,2]
[334766461,1723537866926,-4193.53,0.00015342,2]
[334766463,1723537866935,-523.39,0.00015342,2]
[334766465,1723537866944,-754.54,0.00015342,2]
[334766467,1723537866953,-533.66,0.00015342,2]
[334766469,1723537866963,-775.85,0.00015342,2]
[334766471,1723537866973,-569.0,0.00015342,2]
[334766473,1723537866983,-500.0,0.00015342,2]
[334766475,1723537866992,-1506.12,0.00015342,2]
[334766477,1723537867002,-1002.51,0.00015342,2]
[334766479,1723537867012,-500.0,0.00015342,2]
[334766481,1723537867022,-500.0,0.00015342,2]
[334766483,1723537867031,-852.94,0.00015342,2]
[334766485,1723537867040,-500.0,0.00015342,2]
[334766487,1723537867050,-500.0,0.00015342,2]
[334766489,1723537867059,-3200.0,0.00015401,2]
[334766491,1723537867069,-150.0,0.00015401,2]
[334766493,1723537867081,-500.0,0.00015616,2]
[334766496,1723537867090,-1385.23,0.00015616,2]
[334766498,1723537867100,-660.55,0.00015616,2]
[334766500,1723537867109,-500.0,0.00015616,2]
[334766502,1723537867118,-500.0,0.00015616,2]
[334766504,1723537867127,-500.0,0.00015616,2]
[334766506,1723537867137,-500.0,0.00015616,2]
[334766508,1723537867146,-500.0,0.00015616,2]
[334766510,1723537867155,-1882.69,0.00015616,2]
[334766511,1723537867164,-500.0,0.00015616,2]
[334766513,1723537867174,-225.03296826,0.00015616,2]
[334766515,1723537867184,-531.46,0.00015616,2]
[334766518,1723537867194,-640.71,0.00015616,2]
[334766520,1723537867204,-500.0,0.00015616,2]
[334766522,1723537867213,-500.0,0.00015616,2]
[334766524,1723537867223,-500.0,0.00015616,2]
[334766526,1723537867233,-500.0,0.00015616,2]
[334766528,1723537867242,-500.0,0.00015616,2]
[334766530,1723537867252,-1230.34,0.00015616,2]
[334766532,1723537867261,-737.09,0.00015616,2]
[334766534,1723537867270,-925.78,0.00015616,2]
[334766536,1723537867280,-564.05,0.00015616,2]
[334766538,1723537867289,-500.0,0.00015616,2]
[334766540,1723537867299,-500.0,0.00015616,2]
[334766542,1723537867311,-500.0,0.00015616,2]
[334766543,1723537867323,-500.0,0.00015616,2]
[334766545,1723537867332,-546.14,0.00015616,2]
[334766547,1723537867342,-603.57,0.00015616,2]
[334766549,1723537867352,-500.0,0.00015616,2]
[334766551,1723537867361,-875.25,0.00015616,2]
[334766554,1723537867372,-627.62,0.00015616,2]
[334766556,1723537867386,-500.0,0.00015616,2]
[334766558,1723537867396,-909.82,0.00015616,2]
[334766560,1723537867408,-860.2,0.00015616,2]
[334766562,1723537867417,-548.31,0.00015616,2]
[334766564,1723537867427,-656.8,0.00015616,2]
[334766566,1723537867437,-500.0,0.00015616,2]
[334766568,1723537867448,-797.5,0.00015616,2]
[334766570,1723537867457,-183.07145461,0.00015616,2]
[334766572,1723537867466,-500.0,0.00015616,2]
[334766574,1723537867476,-500.0,0.00015616,2]
[334766576,1723537867486,-500.0,0.00015616,2]
[334766578,1723537867495,-786.49,0.00015616,2]
[334766580,1723537867505,-500.0,0.00015616,2]
[334766582,1723537867515,-1273.33,0.00015616,2]
[334766584,1723537867525,-514.93,0.00015616,2]
[334766586,1723537867535,-500.0,0.00015616,2]
[334766588,1723537867544,-500.0,0.00015616,2]
[334766590,1723537867555,-1201.39,0.00015616,2]
[334766592,1723537867564,-500.0,0.00015616,2]
[334766594,1723537867576,-500.0,0.00015616,2]
[334766596,1723537867586,-403.38812784,0.00015616,2]
[334766598,1723537867596,-830.32,0.00015616,2]
[334766600,1723537867606,-500.0,0.00015616,2]
[334766602,1723537867615,-545.21,0.00015616,2]
[334766604,1723537867624,-1884.12,0.00015616,2]
[334766606,1723537867634,-500.0,0.00015616,2]
[334766608,1723537867644,-743.92,0.00015616,2]
[334766610,1723537867653,-604.58958315,0.00015616,2]
[334766612,1723537867664,-824.42,0.00015616,2]
[334766613,1723537867673,-500.0,0.00015616,2]
[334766614,1723537867682,-958.8,0.00015616,2]
[334766615,1723537867691,-625.11,0.00015616,2]
[334766616,1723537867700,-995.56,0.00015616,2]
[334766617,1723537867711,-500.0,0.00015616,2]
[334766619,1723537867720,-831.7,0.00015616,2]
[334766621,1723537867730,-919.48,0.00015616,2]
[334766623,1723537867739,-680.9,0.00015616,2]
[334766625,1723537867749,-500.0,0.00015616,2]
[334766627,1723537867759,-702.43,0.00015616,2]
[334766629,1723537867768,-500.0,0.00015616,2]
[334766631,1723537867778,-809.2,0.00015616,2]
[334766633,1723537867787,-500.0,0.00015616,2]
[334766635,1723537867796,-4378.29,0.00015616,2]
[334766637,1723537867806,-2261.14,0.00015616,2]
[334766639,1723537867816,-1134.62,0.00015616,2]
[334766641,1723537867829,-500.0,0.00015616,2]
[334766643,1723537867838,-1505.01,0.00015616,2]
[334766646,1723537867848,-500.0,0.00015616,2]
[334766647,1723537867857,-639.48,0.00015616,2]
[334766649,1723537867866,-1583.11,0.00015616,2]
[334766651,1723537867876,-917.9,0.00015616,2]
[334766653,1723537867886,-527.13,0.00015616,2]
[334766655,1723537867895,-1585.62,0.00015616,2]
[334766658,1723537867906,-500.0,0.00015616,2]
[334766660,1723537867917,-500.0,0.00015616,2]
[334766662,1723537867927,-976.77,0.00015616,2]
[334766664,1723537867936,-1734.21,0.00015616,2]
[334766666,1723537867947,-500.0,0.00015616,2]
[334766668,1723537867959,-1315.3,0.00015616,2]
[334766670,1723537867970,-500.0,0.00015616,2]
[334766681,1723537868054,-500.0,0.00015616,2]
[334766683,1723537868071,-7367.39,0.00015616,2]
[334766685,1723537868088,-595.3,0.00015616,2]
[334766687,1723537868097,-995.73,0.00015616,2]
[334766689,1723537868113,-1924.78,0.00015616,2]
[334766691,1723537868124,-2441.51,0.00015616,2]
[334766694,1723537868134,-504.64,0.00015616,2]
[334766696,1723537868145,-500.0,0.00015616,2]
[334766698,1723537868155,-1026.0,0.00015616,2]
[334766700,1723537868164,-1372.19,0.00015616,2]
[334766702,1723537868175,-500.0,0.00015616,2]
[334766704,1723537868185,-825.12,0.00015616,2]
[334766706,1723537868195,-1218.76,0.00015616,2]
[334766708,1723537868205,-2009.64,0.00015616,2]
[334766710,1723537868215,-5418.04,0.00015616,2]
[334766712,1723537868226,-666.76,0.00015616,2]
[334766714,1723537868235,-1515.4,0.00015616,2]
[334766716,1723537868245,-7239.45,0.00015616,2]
[334766718,1723537868255,-500.0,0.00015616,2]
[334766720,1723537868265,-1080.56,0.00015616,2]
[334766722,1723537868275,-1487.36,0.00015616,2]
[334766724,1723537868285,-770.77,0.00015616,2]
[334766726,1723537868298,-500.0,0.00015616,2]
[334766728,1723537868309,-3754.47,0.00015616,2]
[334766730,1723537868319,-3930.98,0.00015616,2]
[334766732,1723537868329,-500.0,0.00015616,2]
[334766734,1723537868341,-584.06,0.00015616,2]
[334766736,1723537868351,-1323.5,0.00015616,2]
[334766739,1723537868361,-500.0,0.00015616,2]
[334766741,1723537868372,-500.0,0.00015616,2]
[334766743,1723537868381,-1224.27,0.00015616,2]
[334766745,1723537868391,-580.42,0.00015616,2]
[334766747,1723537868401,-882.99,0.00015616,2]
[334766749,1723537868411,-500.0,0.00015616,2]
[334766751,1723537868422,-1100.34,0.00015616,2]
[334766753,1723537868431,-4193.53,0.00015616,2]
[334766755,1723537868442,-523.39,0.00015616,2]
[334766757,1723537868451,-754.54,0.00015616,2]
[334766759,1723537868462,-533.66,0.00015616,2]
[334766761,1723537868472,-775.85,0.00015616,2]
[334766763,1723537868482,-569.0,0.00015616,2]
[334766765,1723537868493,-500.0,0.00015616,2]
[334766767,1723537868503,-1506.12,0.00015616,2]
[334766769,1723537868514,-1002.51,0.00015616,2]
[334766771,1723537868525,-500.0,0.00015616,2]
[334766773,1723537868535,-500.0,0.00015616,2]
[334766775,1723537868545,-852.94,0.00015616,2]
[334766777,1723537868554,-500.0,0.00015616,2]
[334766780,1723537868565,-500.0,0.00015616,2]
[334766782,1723537868581,-500.0,0.00015635,2]
[334766784,1723537868597,-158.0,0.0001566,2]
[334766786,1723537868606,-1051.6074,0.000157,2]
[334766787,1723537868615,-1500.0,0.00015707,2]
[334766789,1723537868625,-1164.18655458,0.00015707,2]
[334766791,1723537868635,-2165.02531007,0.00015707,2]
[334766794,1723537868646,-1993.92519037,0.00015707,2]
[334766796,1723537868655,-2141.62462175,0.00015707,2]
[334766798,1723537868665,-1384.50193288,0.00015707,2]
[334766799,1723537868674,-14255.47414227,0.00015707,2]
[334766801,1723537868683,-1765.51331177,0.00015707,2]
[334766803,1723537868692,-3091.13727691,0.00015707,2]
[334766805,1723537868702,-7009.73582418,0.00015707,2]
[334766807,1723537868711,-2280.94328091,0.00015707,3]
[334766809,1723537868719,-42388.53220002,0.00015707,2]
[334766811,1723537868729,-2711.07610904,0.00015707,2]
[334766814,1723537868739,-8839.32018814,0.00015707,2]
[334766816,1723537868749,-1612.50236141,0.00015707,2]
[334766818,1723537868758,-1604.49259508,0.00015707,2]
[334766820,1723537868767,-1730.69354329,0.00015707,2]
[334766822,1723537868777,-9653.694874,0.00015707,2]
[334766824,1723537868787,-2126.93180055,0.00015707,2]
[334766826,1723537868796,-13163.19093551,0.00015709,2]
[334766828,1723537868806,-55437.23569522,0.00015709,2]
[334766830,1723537868816,-306.0,0.00015784,2]
[334766832,1723537868826,-153.0,0.00015888,2]
[334766834,1723537868835,-154.0976678,0.00015888,2]
[334766836,1723537868845,-153.0,0.00015888,2]
[334766838,1723537868854,-153.0,0.00015888,2]
[334766840,1723537868863,-153.0,0.00015888,2]
[334766842,1723537868874,-153.0,0.00015888,2]
[334766844,1723537868883,-500.0,0.0001589,2]
[334766846,1723537868893,-1385.23,0.0001589,2]
[334766848,1723537868902,-660.55,0.0001589,2]
[334766850,1723537868912,-500.0,0.0001589,2]
[334766852,1723537868921,-500.0,0.0001589,2]
[334766854,1723537868931,-215.78,0.0001589,2]
[334766856,1723537868941,-500.0,0.0001589,2]
[334766858,1723537868950,-1882.69,0.0001589,2]
[334766860,1723537868959,-500.0,0.0001589,2]
[334766862,1723537868969,-531.46,0.0001589,2]
[334766864,1723537868978,-640.71,0.0001589,2]
[334766866,1723537868988,-500.0,0.0001589,2]
[334766868,1723537868998,-500.0,0.0001589,2]
[334766870,1723537869007,-500.0,0.0001589,2]
[334766872,1723537869017,-500.0,0.0001589,2]
[334766874,1723537869027,-500.0,0.0001589,2]
[334766876,1723537869037,-1230.34,0.0001589,2]
[334766878,1723537869047,-737.09,0.0001589,2]
[334766880,1723537869056,-925.78,0.0001589,2]
[334766882,1723537869066,-564.05,0.0001589,2]
[334766884,1723537869081,-500.0,0.0001589,2]
[334766886,1723537869092,-500.0,0.0001589,2]
[334766888,1723537869102,-500.0,0.0001589,2]
[334766890,1723537869111,-500.0,0.0001589,2]
[334766892,1723537869120,-546.14,0.0001589,2]
[334766894,1723537869131,-603.57,0.0001589,2]
[334766896,1723537869141,-500.0,0.0001589,2]
[334766898,1723537869150,-875.25,0.0001589,2]
[334766900,1723537869160,-627.62,0.0001589,2]
[334766903,1723537869170,-500.0,0.0001589,2]
[334766905,1723537869181,-909.82,0.0001589,2]
[334766907,1723537869190,-860.2,0.0001589,2]
[334766909,1723537869199,-548.31,0.0001589,2]
[334766911,1723537869209,-656.8,0.0001589,2]
[334766913,1723537869219,-500.0,0.0001589,2]
[334766915,1723537869228,-797.5,0.0001589,2]
[334766917,1723537869238,-500.0,0.0001589,2]
[334766919,1723537869248,-500.0,0.0001589,2]
[334766921,1723537869257,-500.0,0.0001589,2]
[334766923,1723537869266,-786.49,0.0001589,2]
[334766925,1723537869275,-500.0,0.0001589,2]
[334766927,1723537869285,-1273.33,0.0001589,2]
[334766929,1723537869297,-514.93,0.0001589,2]
[334766931,1723537869307,-500.0,0.0001589,2]
[334766933,1723537869317,-500.0,0.0001589,2]
[334766935,1723537869329,-1201.39,0.0001589,2]
[334766937,1723537869338,-500.0,0.0001589,2]
[334766939,1723537869348,-500.0,0.0001589,2]
[334766941,1723537869357,-830.32,0.0001589,2]
[334766943,1723537869366,-500.0,0.0001589,2]
[334766945,1723537869376,-545.21,0.0001589,2]
[334766947,1723537869387,-1884.12,0.0001589,2]
[334766949,1723537869397,-500.0,0.0001589,2]
[334766950,1723537869406,-743.92,0.0001589,2]
[334766952,1723537869416,-824.42,0.0001589,2]
[334766954,1723537869425,-500.0,0.0001589,2]
[334766957,1723537869437,-958.8,0.0001589,2]
[334766959,1723537869447,-625.11,0.0001589,2]
[334766961,1723537869456,-995.56,0.0001589,2]
[334766963,1723537869467,-500.0,0.0001589,2]
[334766965,1723537869477,-831.7,0.0001589,2]
[334766967,1723537869486,-919.48,0.0001589,2]
[334766969,1723537869496,-680.9,0.0001589,2]
[334766971,1723537869505,-233.62421292,0.0001589,2]
[334766973,1723537869514,-553.30172337,0.0001589,2]
[334767006,1723537869826,-149.12827663,0.0001589,2]
[334767008,1723537869837,-500.0,0.0001589,2]
[334767010,1723537869846,-809.2,0.0001589,2]
[334767012,1723537869857,-500.0,0.0001589,2]
[334767014,1723537869866,-4378.29,0.0001589,2]
[334767016,1723537869878,-1134.62,0.0001589,2]
[334767018,1723537869888,-2261.14,0.0001589,2]
[334767020,1723537869899,-500.0,0.0001589,2]
[334767022,1723537869910,-1505.01,0.0001589,2]
[334767024,1723537869922,-500.0,0.0001589,2]
[334767026,1723537869934,-639.48,0.0001589,2]
[334767028,1723537869944,-1583.11,0.0001589,2]
[334767031,1723537869955,-917.9,0.0001589,2]
[334767033,1723537869966,-527.13,0.0001589,2]
[334767035,1723537869976,-1585.62,0.0001589,2]
[334767037,1723537869988,-500.0,0.0001589,2]
[334767039,1723537869998,-976.77,0.0001589,2]
[334767041,1723537870009,-500.0,0.0001589,2]
[334767043,1723537870020,-1734.21,0.0001589,2]
[334767045,1723537870031,-500.0,0.0001589,2]
[334767048,1723537870043,-1315.3,0.0001589,2]
[334767050,1723537870054,-500.0,0.0001589,2]
[334767052,1723537870066,-500.0,0.0001589,2]
[334767053,1723537870075,-7367.39,0.0001589,2]
[334767056,1723537870088,-595.3,0.0001589,2]
[334767058,1723537870099,-995.73,0.0001589,2]
[334767060,1723537870110,-1924.78,0.0001589,2]
[334767062,1723537870119,-2441.51,0.0001589,2]
[334767064,1723537870129,-504.64,0.0001589,2]
[334767066,1723537870138,-500.0,0.0001589,2]
[334767068,1723537870148,-1026.0,0.0001589,2]
[334767070,1723537870158,-1372.19,0.0001589,2]
[334767072,1723537870168,-500.0,0.0001589,2]
[334767073,1723537870177,-825.12,0.0001589,2]
[334767075,1723537870187,-1218.76,0.0001589,2]
[334767077,1723537870196,-2009.64,0.0001589,2]
[334767079,1723537870207,-5418.04,0.0001589,2]
[334767081,1723537870217,-666.76,0.0001589,2]
[334767084,1723537870228,-1515.4,0.0001589,2]
[334767085,1723537870237,-7239.45,0.0001589,2]
[334767088,1723537870247,-500.0,0.0001589,2]
[334767089,1723537870258,-1080.56,0.0001589,2]
[334767092,1723537870269,-1487.36,0.0001589,2]
[334767094,1723537870279,-770.77,0.0001589,2]
[334767096,1723537870291,-500.0,0.0001589,2]
[334767098,1723537870304,-3754.47,0.0001589,2]
[334767100,1723537870317,-3930.98,0.0001589,2]
[334767102,1723537870330,-500.0,0.0001589,2]
[334767104,1723537870343,-584.06,0.0001589,2]
[334767106,1723537870354,-1323.5,0.0001589,2]
[334767108,1723537870365,-500.0,0.0001589,2]
[334767110,1723537870380,-500.0,0.0001589,2]
[334767112,1723537870390,-1224.27,0.0001589,2]
[334767114,1723537870400,-580.42,0.0001589,2]
[334767116,1723537870413,-882.99,0.0001589,2]
[334767119,1723537870424,-500.0,0.0001589,2]
[334767121,1723537870435,-1100.34,0.0001589,2]
[334767123,1723537870444,-3738.99882088,0.0001589,2]
[334767210,1723537871299,-2494.47,0.00010959,2]
[334767212,1723537871313,-4928.60012584,0.000129,2]
[334767214,1723537871322,-661.422012,0.0001298,2]
[334767216,1723537871333,-661.422012,0.0001299,2]
[334767218,1723537871345,-661.422012,0.00013,2]
[334767220,1723537871356,-661.422012,0.00013305,2]
[334767222,1723537871367,-2830.0242133,0.0001469,2]
[334767225,1723537871380,-664.23843884,0.0001469,2]
[334767291,1723537872390,-200.0,0.00011873,2]
[334767293,1723537872400,-4751.40224966,0.000129,2]
[334767295,1723537872411,-177.19787612,0.000129,2]
[334767297,1723537872423,-661.422012,0.0001298,2]
[334767300,1723537872435,-661.422012,0.0001299,2]
[334767302,1723537872445,-661.422012,0.00013,2]
[334767304,1723537872457,-531.48149402,0.00013305,2]
[334767362,1723537873017,-129.94051798,0.00013305,2]
[334767364,1723537873027,-661.422012,0.0001369,2]
[334767366,1723537873036,-661.422012,0.0001369,2]
[334767368,1723537873046,-661.422012,0.00013698,2]
[334767370,1723537873055,-661.422012,0.00013698,2]
[334767372,1723537873064,-661.422012,0.00013698,2]
[334767374,1723537873074,-661.422012,0.00013698,2]
[334767376,1723537873084,-661.422012,0.00013698,2]
[334767378,1723537873094,-661.422012,0.00013698,2]
[334767380,1723537873103,-661.422012,0.00013698,2]
[334767383,1723537873112,-583.45786946,0.00013698,2]
[334768125,1723538803121,-600.0,9.898e-05,2]
[334768126,1723538803149,-300.0,9.998e-05,2]
[334768127,1723538803176,-300.0,9.998e-05,2]
[334768128,1723538803201,-157.99537743,9.999e-05,2]
[334768129,1723538803228,-522.96413212,9.999e-05,2]
[334768130,1723538803256,-301.33703286,9.999e-05,2]
[334768131,1723538803280,-154.76012181,9.999e-05,2]
[334768132,1723538803302,-156.78137498,9.999e-05,2]
[334768133,1723538803324,-665.04001235,9.999e-05,2]
[334768134,1723538803347,-189.9631639,9.999e-05,2]
[334768135,1723538803373,-520.25072733,9.999e-05,2]
[334768136,1723538803401,-154.76012181,9.999e-05,2]
[334768137,1723538803426,-250.59023246,9.999e-05,2]
[334768138,1723538803453,-1020.88413461,9.999e-05,2]
[334768139,1723538803480,-154.76012181,9.999e-05,2]
[334768140,1723538803506,-342.43792084,9.999e-05,2]
[334768141,1723538803532,-182.35195424,9.999e-05,2]
[334768142,1723538803558,-528.08203365,9.999e-05,2]
[334768236,1723539032794,-250.0,9.365e-05,2]
[334768238,1723539032804,-250.0,9.39e-05,2]
[334768240,1723539032814,-250.0,9.416e-05,2]
[334768242,1723539032823,-250.0,9.442e-05,2]
[334768244,1723539032835,-250.0,9.467e-05,2]